Cogmind - Beta 12 @@@ ROGUE MODE // 2023.03.11 @ 00:53:31 Player: Howard Result: Self-destructed Performance ------------- Evolutions (1) 500 Regions Visited (3) 600 Robots Destroyed (15) 75 Value Destroyed (433) 433 Prototype IDs (3) 60 Alien Tech Used (0) 0 Bonus (0) 0 TOTAL SCORE: 1668 Bonus ------- None Cogmind --------- Core Integrity 335/400 Matter 297/300 Energy 280/280 System Corruption 0% Temperature Warm (145) Movement Treading (240) Ox1 Location -9/Storage Parts ------- > --- POWER (1) -------- Cooled Ion Engine > --- PROPULSION (2) --- Light Treads Light Treads > --- UTILITY (4) ------ Large Storage Unit Medium Armor Plating > --- WEAPON (2) ------- Improved Medium Laser Particle Cannon > --- INVENTORY (15) --- Light Ion Engine Heavy Ion Engine Hardlight Generator Particle Cannon Particle Cannon Particle Cannon Mace Peak State ------------ > --- POWER ------------ Heavy Ion Engine > --- PROPULSION ------- Light Treads Wheel > --- UTILITY ---------- Large Storage Unit Medium Armor Plating Medium Armor Plating > --- WEAPON ----------- Improved Medium Laser Particle Cannon > --- INVENTORY -------- Light Ion Engine Light Nuclear Core Light Treads Hardlight Generator Particle Cannon Particle Cannon Particle Cannon Mace [Rating: 16] Favorites ----------- Power Light Ion Engine Engine Light Ion Engine Propulsion Light Treads Treads Light Treads Wheel Compact Wheel Utility Medium Armor Plating Device Hardlight Generator Storage Large Storage Unit Protection Medium Armor Plating Weapon Particle Cannon Energy Gun Medium Laser Energy Cannon Particle Cannon Impact Weapon Mace Build | -11 -10 -9 -9 ------- Run | Jun Mat Mat Sto Slots Evolved 2 | . . 2 . Power . | . . . . Propulsion . | . . . . Utility 2 | . . 2 . Weapon . | . . . . Parts Attached 23 | 6 9 3 5 Power 4 | 1 1 . 2 Engine 4 | 1 1 . 2 Core . | . . . . Reactor . | . . . . Propulsion 5 | 2 1 . 2 Treads 3 | 1 1 . 1 Leg . | . . . . Wheel 2 | 1 . . 1 Hover . | . . . . Flight . | . . . . Utility 6 | 1 2 3 . Device 1 | . . 1 . Storage 2 | 1 1 . . Processor . | . . . . Hackware . | . . . . Protection 3 | . 1 2 . Artifact . | . . . . Weapon 8 | 2 5 . 1 Energy Gun 4 | 2 1 . 1 Energy Cannon 3 | . 3 . . Ballistic Gun . | . . . . Ballistic Cannon . | . . . . Launcher . | . . . . Special Weapon . | . . . . Impact Weapon 1 | . 1 . . Slashing Weapon . | . . . . Piercing Weapon . | . . . . Special Melee Weapon . | . . . . Unidentified Prototypes 3 | . . . 3 Parts Lost 5 | . 1 1 3 Power . | . . . . Propulsion 2 | . . . 2 Utility 2 | . . 1 1 Weapon 1 | . 1 . . Highest Loss Streak 2 | . 1 1 2 To Critical Strikes . | . . . . Average Slot Usage (%) 89 | . 90 86 85 Engine 12 | . 14 11 11 Treads 13 | . 14 11 12 Wheel 12 | . 14 11 9 Device 1 | . . 5 . Storage 13 | . 14 11 11 Protection 9 | . 5 15 19 Energy Gun 6 | . 9 . 5 Energy Cannon 17 | . 16 22 16 Naked Turns . | . . . . Heaviest Build 52 | 14 38 52 49 Greatest Support 40 | 16 16 16 40 Greatest Overweight (x) 4 | . 2 3 4 Average Overweight (x) 1 | . 1 2 2 Largest Inventory Capacity 15 | 8 15 15 15 Average Capacity 13 | 6 12 15 15 Most Carried 9 | 4 9 9 9 Average Carried 6 | 2 5 7 7 Final Capacity 15 | 8 15 15 15 Final Carried 8 | 4 8 7 7 Class Distribution -------------------- 100% | Mutant Dominant Class ---------------- Mutant | -10/Materials Mutant | -9/Materials Mutant | -9/Storage Resources | -11 -10 -9 -9 ----------- Run | Jun Mat Mat Sto Matter Collected 390 | 217 118 10 45 Remotely . | . . . . Salvage Created 542 | . 316 130 96 Parts 30 | . 18 7 5 Haulers Intercepted 1 | . 1 . . Recyclers Shooed . | . . . . Parts Field Recycled . | . . . . Retrieved Matter . | . . . . Parts Self-Destructed . | . . . . Prevented . | . . . . Kills | -11 -10 -9 -9 ------- Run | Jun Mat Mat Sto Combat Hostiles Destroyed 13 | . 9 2 2 Guns 6 | . 5 . 1 Cannons 5 | . 2 2 1 Classes Destroyed 5 | . 3 2 . Builder 1 | . . 1 . Hauler 1 | . 1 . . Swarmer 3 | . 3 . . Grunt 7 | . 6 . 1 Sentry 3 | . . 2 1 Best Kill Streak 3 | . 3 2 1 Combat Bots Only 3 | . 3 1 1 Max Kills in Single Turn 1 | . 1 1 1 Gunslinging . | . . . . Exploded . | . . . . Melee . | . . . . Uniques/NPCs Destroyed . | . . . . Combat | -11 -10 -9 -9 -------- Run | Jun Mat Mat Sto Damage Taken 1255 | . 556 159 540 Core 202 | . 137 11 54 Absorbed by Shields 8 | . . 8 . Core Remaining (%) 72 | 100 45 . . Volleys Fired 41 | . 27 5 9 Largest 2 | . 2 2 2 Hottest 136 | . 136 136 136 Shots Fired 81 | . 53 10 18 Gun 43 | . 37 . 6 Cannon 38 | . 16 10 12 Launcher . | . . . . Special . | . . . . Kinetic . | . . . . Thermal 76 | . 48 10 18 Explosive . | . . . . Electromagnetic 5 | . 5 . . Robot Hit Streak 10 | . 10 3 7 Robot Miss Streak 3 | . 3 2 2 Penetration Max . | . . . . Secondary Targets 1 | . 1 . . Max Gunslinging Chain 1 | . 1 . . Shots Hit Robots 62 | . 45 6 11 Core Hits 17 | . 12 3 2 Critical Kills 1 | . 1 . . Critical Parts Destroyed . | . . . . Critical Strikes 5 | . 5 . . Burn 3 | . 3 . . Meltdown 1 | . 1 . . Corrupt 1 | . 1 . . Melee Attacks 9 | . 9 . . Impact 9 | . 9 . . Slashing . | . . . . Piercing . | . . . . Sneak Attacks . | . . . . Combat Hostiles . | . . . . Follow-up Attacks . | . . . . Damage Inflicted 1178 | . 821 143 214 Guns 398 | . 330 . 68 Cannons 528 | . 244 143 141 Explosions . | . . . . Melee 247 | . 247 . . Ramming 5 | . . . 5 Kinetic . | . . . . Thermal 872 | . 520 143 209 Explosive . | . . . . Electromagnetic 54 | . 54 . . Impact 247 | . 247 . . Slashing . | . . . . Piercing . | . . . . Highest Corruption . | . . . . Average Corruption . | . . . . Corruption Purged . | . . . . Corruption Blocked . | . . . . Overload Shots . | . . . . Overflow Damage 17 | . 17 . . Projectiles . | . . . . Explosions . | . . . . Melee 17 | . 17 . . Knockbacks . | . . . . Impact . | . . . . Kinetic . | . . . . Secondary . | . . . . Self-Inflicted Damage . | . . . . Shots . | . . . . Rammed 4 | . . . 4 Targets Rammed 4 | . . . 4 Kicked . | . . . . Crushed . | . . . . Highest Temperature 425 | . 425 207 399 Average Temperature 167 | . 163 86 227 Received Heat Transfer 634 | . 306 76 252 Effects 4 | . . 2 2 Energy Bleed 1 | . . . 1 Interference 2 | . . 2 . Damage (minor) 1 | . . . 1 Siege Activations . | . . . . Robots Corrupted . | . . . . Combat Hostiles . | . . . . Parts Fried . | . . . . Impact Corruptions 1 | . 1 . . Robots Melted 2 | . 2 . . Combat Hostiles 2 | . 2 . . Parts Melted 4 | . 3 . 1 Heat Transferred 2146 | . 1480 259 407 Parts Sabotaged . | . . . . Parts Stolen . | . . . . Parts Stripped . | . . . . Power Chain Reactions . | . . . . Missiles Intercepted . | . . . . Alert | -11 -10 -9 -9 ------- Run | Jun Mat Mat Sto Peak Influence 262 | . 262 210 164 Initial 110 | . . 110 84 Average 131 | . 142 158 125 Maximum Alert Level 1 | . 1 1 . Low Security (%) 81 | 100 77 72 100 Level 1 18 | . 22 27 . Level 2 . | . . . . Level 3 . | . . . . Level 4 . | . . . . Level 5 . | . . . . High Security . | . . . . Max Security . | . . . . Squads Dispatched 5 | . 2 1 2 Investigation 2 | . 1 . 1 Extermination . | . . . . Reinforcement 2 | . 1 1 . Assault . | . . . . Garrison 1 | . . . 1 Intercept . | . . . . Searches Triggered . | . . . . Construction Impeded . | . . . . Haulers Reinforced . | . . . . Active Scanning Responses . | . . . . Cargo Convoy Interrupts . | . . . . Stealth | -11 -10 -9 -9 --------- Run | Jun Mat Mat Sto Distress Signals 2 | . . . 2 Communications Jammed . | . . . . Distress Signals . | . . . . Times Spotted 30 | . 16 7 7 Peak Tracking Total 6 | . 6 6 5 Tactical Retreats 1 | . 1 . . Traps | -11 -10 -9 -9 ------- Run | Jun Mat Mat Sto Traps Triggered 2 | . 1 . 1 Indirectly . | . . . . Trap Hack Attempts . | . . . . Triggered . | . . . . Disarmed . | . . . . Reprogrammed . | . . . . Reused . | . . . . Traps Extracted . | . . . . Installed . | . . . . Triggered . | . . . . Machines | -11 -10 -9 -9 ---------- Run | Jun Mat Mat Sto Machines Disabled 1 | . . . 1 Max in Single Turn 1 | . . . 1 Machines Repaired . | . . . . Machines Sabotaged . | . . . . Overloaded Fab Kills . | . . . . Hacking | -11 -10 -9 -9 --------- Run | Jun Mat Mat Sto Machines Accessed 2 | . 1 1 . Terminals 2 | . 1 1 . Fabricators . | . . . . Repair Stations . | . . . . Recycling Units . | . . . . Scanalyzers . | . . . . Garrison Access . | . . . . Total Hacks 8 | . 2 6 . Successful 2 | . . 2 . Failed 6 | . 2 4 . Catastrophic 2 | . 1 1 . Database Lockouts . | . . . . Manual 8 | . 2 6 . Terminals 8 | . 2 6 . Fabricators . | . . . . Repair Stations . | . . . . Recycling Units . | . . . . Scanalyzers . | . . . . Garrison Access . | . . . . Terminal Hacks . | . . . . Fabricator Hacks . | . . . . Repair Station Hacks . | . . . . Recycling Unit Hacks . | . . . . Scanalyzer . | . . . . Garrison Access Hacks . | . . . . Unauthorized Hacks 2 | . . 2 . Terminals 2 | . . 2 . Botnet 1 | . . 1 . Operators 1 | . . 1 . Fabricators . | . . . . Repair Stations . | . . . . Recycling Units . | . . . . Scanalyzers . | . . . . Garrison Access . | . . . . Data Cores Recovered . | . . . . Used . | . . . . Hacking Detections 2 | . 1 1 . Full Trace Events . | . . . . Feedback Events . | . . . . Feedback Blocked . | . . . . Robot Schematics Acquired . | . . . . Robots Built . | . . . . Authchips . | . . . . Time . | . . . . Total Robot Build Rating . | . . . . Part Schematics Acquired . | . . . . Parts Built . | . . . . Authchips . | . . . . Time . | . . . . Total Part Build Rating . | . . . . Parts Repaired . | . . . . Time . | . . . . Parts Recycled . | . . . . Recycled Matter . | . . . . Retrieved Matter . | . . . . Retrieved Components . | . . . . Parts Scanalyzed . | . . . . Part Schematics Acquired . | . . . . Parts Damaged . | . . . . Bothacking | -11 -10 -9 -9 ------------ Run | Jun Mat Mat Sto Used RIF Installer . | . . . . Robots Hacked . | . . . . Non-combat . | . . . . Combat . | . . . . Robot Hacks Applied . | . . . . Relay Couplers Released . | . . . . Fabnet Peak Effective % . | . . . . Robots Rewired . | . . . . Allies Hacked . | . . . . Hacks Repelled . | . . . . Allies | -11 -10 -9 -9 -------- Run | Jun Mat Mat Sto Total Allies . | . . . . Largest Group . | . . . . Highest-Rated Group . | . . . . Highest-Rated Ally . | . . . . Total Orders . | . . . . Ally Attacks . | . . . . Total Damage . | . . . . Kills . | . . . . Allies Corrupted . | . . . . Allies Melted . | . . . . Intel | -11 -10 -9 -9 ------- Run | Jun Mat Mat Sto Robot Analysis Total . | . . . . Derelict Logs Recovered . | . . . . Drone Launches . | . . . . Drone Recoveries . | . . . . Exploration | -11 -10 -9 -9 ------------- Run | Jun Mat Mat Sto Turns Passed 682 | 56 393 136 97 Spaces Moved 386 | 45 216 89 36 Core 3 | 3 . . . Treads 1 | . . . 1 Legs . | . . . . Wheels 382 | 42 216 89 35 Hover . | . . . . Flight . | . . . . Fastest Speed 50 | 50 100 130 130 Average Speed 119 | 96 116 130 136 Slowest Speed 240 | 100 130 145 240 Overloaded Moves . | . . . . Propulsion Burnouts . | . . . . Robots Hopped . | . . . . Cave-ins Triggered . | . . . . Exploration Rate (%) 18 | 3 50 8 13 Regions Visited 3 Branch Regions 1 Pre-discovered Areas . | . . . . Known Exits Taken . | . . . . Unknown Exits Taken 3 | 1 1 1 . Scrap Searched . | . . . . Spaces Dug . | . . . . Terrain Destroyed . | . . . . Melee . | . . . . Projectile . | . . . . AOE . | . . . . Terrain Rammed . | . . . . Walls Destroyed . | . . . . Machines Disabled . | . . . . Actions | -11 -10 -9 -9 --------- Run | Jun Mat Mat Sto Total 501 | 54 289 98 60 Wait 18 | . 15 1 2 Move 383 | 44 215 88 36 Hop . | . . . . Pick Up 10 | 4 6 . . Fast Attach 14 | 6 4 1 3 Attach 5 | . 1 2 2 Detach 7 | . 3 1 3 Swap 4 | . 4 . . Drop 6 | . 5 . 1 Fire 41 | . 27 5 9 Melee 9 | . 9 . . Ram . | . . . . Kick . | . . . . Crush 4 | . . . 4 Escape Stasis . | . . . . Rewire . | . . . . Trap . | . . . . Miscellaneous . | . . . . Route ------- -11/Junkyard -10/Materials (discovered 2 exits: *Mat / [*Min]) -9/Materials -9/Storage History --------- Turn | Location | Event 18 | -11/Junkyard | Discovered new exit (range 15) 57 | -11/Junkyard | Entered Materials 235 | -10/Materials | Discovered new exit (range 16) 318 | -10/Materials | Build established: Mutant 395 | -10/Materials | Core integrity fell below 50% 427 | -10/Materials | Discovered new exit (range 5) 450 | -10/Materials | Entered another Materials area 450 | -9/Materials | Evolved 2 slots: Utility x2 460 | -9/Materials | Discovered new exit (range 11) 586 | -9/Materials | Entered Storage 618 | -9/Storage | Garrison activated, responded to threat 683 | -9/Storage | Self-destructed Last Messages --------------- 00639_ Acquired Prototype Engine. 00639_ Identified Cld. Ion Engine. 00640_ Dropped Lgt. Nuclear Core. 00642_ W-16 Scout sends out distress signal. 00642_ R-06 Scavenger collects Lgt. Treads. 00646_ R-06 Scavenger collects Heat Sink. 00648_ Sml. Laser melted. 00648_ G-34 Mercenary destroyed. 00651_ Acquired 45 matter. 00668_ Med. Armor Plating destroyed. 00668_ Slammed into Y-45 Defender. 00669_ Critical hit (Burn: +37). 00670_ Overheating: Energy bleed (-30). 00672_ Overheating: Cld. Ion Engine damaged (-39). 00673_ Wheel destroyed. 00674_ Slammed into Y-45 Defender. 00675_ K-01 Serf collects debris. 00676_ Slammed into Y-45 Defender. 00678_ K-01 Serf collects debris. 00679_ Slammed into Y-45 Defender. Map ----- +----------------------------------------------------+ | ??????????????????????????????????????????????? | | ??????????????????????????????????????????????? | | ??????????????????????????????????????????????? | | ??????????????????????????????????????????????? | | ??????????????????????????????????????????????? | | ??????????????????????????????????????????????? | | ??????????????????????????????????????????????? | | ??????????????????????????????????????????????? | | ??????????????????????????????????????????????? | | ??????????????????????????????????????????????? | | ??????????????????????????????????????????????? | | ??????????????????????????????????????????????? | | ??????????????????????????????????????????????? | | ??????????????????????????????????????????????? | | ??????????????????????????????????????????????? | | ??????????????????????????????????#???????????? | | ????????????????????????????????? #???????????? | | ???????????????????????????????? #???????????? | | ??????????????????????????????? ????????????? | | ?????????????????????##########w###???????????? | | ????????????????????? #???????????? | | ?????????????????????? +???????????? | | ??????????????????????? #???????????? | | ???????????????????????# #???????????? | | ???????????????????????# #???????????? | | ???????????????????????#Y@ #???????????? | | ???????????????????????#g######## #???????????? | | ?????????????????????###/#######??????????????? | | ?????????????????????# % #??????????????? | | ?????????????????????# "" " #??????????????? | | ?????????????????????# " " #??????????????? | | ?????????????????????# [ " #??????????????? | | ?????????????????????# "=[" #??????????????? | | ?????????????????????# "=[" #??????????????? | | ?????????????????????# """" #??????????????? | | ?????????????????????# #######????????? | | ???????????????#+#########+##### #????????? | | ???????????? #????????? | | ???????????? #????????? | | ???????????? #????????? | | ?????????????###/############### #????????? | | ????????????????????????######?## ##????????? | | ??????????????????????# ? ?# #?????????? | | ??????????????????????# # #?????????? | | ????????????????????????""" # #?????????? | | ????????????????????????""" + #?????????? | | ????????????????????????""" " " # #?????????? | | ???????????????????????? "G" # #?????????? | | ????????????????????????? = " ?# #?????????? | | ???????????????????????? ??# #?????????? | +----------------------------------------------------+ Best States ------------- Heat Dissipation 28 Energy Generation 14 Energy Capacity 280 Matter Stores 300 Matter Capacity 300 Sight Range 16 Terrain Scan Density 10 Armor Coverage 675 Evasion (%) 40 Recoil Reduction 2 Item Schematics ----------------- None Robot Schematics ------------------ None Fabricated ------------ Nothing Alien Tech Used ----------------- None Achievements -------------- None Challenges ------------ None Game ------ Seed SmartbombSystemGreatsword Manual? 0 Play Time 00:07:40 Cumulative 153.8 hours Start 2023.03.11 @ 00:47:25 End 2023.03.11 @ 00:53:31 Sessions 1 Manual Loads 0 Difficulty Rogue Special Mode None Game No. 112 Rogue 110 Adventurer 2 Explorer 0 Win Type - Total 7 Types 4/0/1/2/0/0/0/0/0 Lore% 69 Gallery% 74 Achievement% 68 Wizard Run 0 Options --------- ASCII 0 Keyboard 1 Movement Numpad Keybinds 0 Fullscreen 1 Font 12/Smallcaps Map View 83x54 Tactical HUD 1 Map Filters NONE Filters NONE Steam 1 RUN: 48b5c3e9-29cd-424d-a825-85d3697a39dd